bitfinex/quotes_SOLUSD_20240813
["timestamp","ask_amount","ask_price","bid_price","bid_amount"]
[1723510075840,5.4577,146.58,146.55,1.36462664]
[1723510076050,5.4577,146.58,146.55,1.36462429]
[1723510076259,5.4577,146.58,146.54,5.4591]
[1723510076466,5.4577,146.58,146.53,5.4596]
[1723510076675,5.4592,146.54,146.49,13.3195]
[1723510076850,5.4592,146.54,146.5,0.12549]
[1723510077042,5.46,146.52,146.48,13.6532]
[1723510077244,39.27,146.54,146.47,5.4615]
[1723510077479,39.27,146.54,146.42,19.5951]
[1723510077480,61.1522,146.52,146.42,19.5951]
[1723510077649,5.4615,146.48,146.43,5.4633]
[1723510078078,5.4615,146.48,146.44,5.4629]
[1723510078577,39.27,146.48,146.42,13.6589]
[1723510078950,5.4619,146.47,146.42,19.1225]
[1723510079265,39.27,146.48,146.42,13.6589]
[1723510079651,0.06662385,146.43,146.42,19.1226]
[1723510079852,0.06662385,146.43,146.42,19.24809]
[1723510080068,0.06662385,146.43,146.42,19.1226]
[1723510080249,0.06662385,146.43,146.42,13.6589]
[1723510080445,0.06662385,146.43,146.42,20.4883704]
[1723510080671,0.06662385,146.43,146.4,5.4641]
[1723510081251,0.06662385,146.43,146.41,5.464]
[1723510081447,0.06662385,146.43,146.41,6.82986027]
[1723510081676,0.06662385,146.43,146.41,5.464]
[1723510082374,0.06662385,146.43,146.37,5.4653]
[1723510082375,5.464,146.42,146.37,5.4653]
[1723510083061,0.06662385,146.43,146.37,13.6632]
[1723510083456,5.52992385,146.43,146.37,13.6632]
[1723510083656,5.52992385,146.43,146.38,5.4649]
[1723510084281,5.52992385,146.43,146.38,6.83106942]
[1723510084483,0.06662385,146.43,146.39,13.6613]
[1723510084652,0.06662385,146.43,146.42,5.4637]
[1723510084852,0.06662385,146.43,146.42,6.95480623]
[1723510085194,0.06662385,146.43,146.42,7.20578623]
[1723510085890,0.06662385,146.43,146.42,46.47578623]
[1723510086089,0.06662385,146.43,146.42,118.09637623]
[1723510086290,0.06934976,146.44,146.43,5.58879]
[1723510086492,0.06934976,146.44,146.43,5.96526]
[1723510086689,0.06934976,146.44,146.43,5.83977]
[1723510087093,0.06934976,146.44,146.4,2.73561]
[1723510087279,0.06934976,146.44,146.37,5.4655]
[1723510087280,5.4638,146.42,146.37,5.4655]
[1723510087484,0.06934976,146.44,146.38,1.36608743]
[1723510087707,0.06934976,146.44,146.4,5.4643]
[1723510087977,5.53244976,146.44,146.39,19.1262]
[1723510088207,5.4638,146.42,146.36,13.6645]
[1723510088393,54.99934976,146.44,146.36,19.1303]
[1723510088394,5.4644,146.4,146.36,19.1303]
[1723510088786,54.99934976,146.44,146.33,33.8925]
[1723510089111,21.19234976,146.44,146.4,5.4641]
[1723510089308,21.19234976,146.44,146.39,5.4647]
[1723510089611,15.72934976,146.44,146.4,13.6604]
[1723510089781,0.06934976,146.44,146.41,5.464]
[1723510089982,0.06934976,146.44,146.37,13.6634]
[1723510090180,39.27,146.43,146.33,33.8925]
[1723510090417,5.4641,146.41,146.36,5.4659]
[1723510090604,5.4641,146.41,146.36,6.83215974]
[1723510090808,5.4641,146.41,146.37,5.4655]
[1723510091105,44.7337,146.43,146.38,6.83122293]
[1723510091311,0.06934976,146.44,146.39,1.36611434]
[1723510091612,0.06934976,146.44,146.43,5.4633]
[1723510091775,0.06934976,146.44,146.41,13.6595]
[1723510091776,0.06934976,146.44,146.42,1.36558347]
[1723510091977,0.06934976,146.44,146.38,13.6627]
[1723510092181,5.4637,146.43,146.39,5.4648]
[1723510092608,0.06934976,146.44,146.38,19.1279]
[1723510092609,5.4637,146.42,146.38,19.1279]
[1723510092798,39.33934976,146.44,146.35,19.1318]
[1723510093005,39.33934976,146.44,146.33,5.4668]
[1723510093006,39.27,146.4,146.33,5.4668]
[1723510093205,5.4656,146.37,146.32,19.1354]
[1723510094416,6.4006,146.43,146.39,5.4648]
[1723510094584,6.4006,146.43,146.37,1.36597892]
[1723510094791,6.4006,146.43,146.39,5.4646]
[1723510095004,11.864,146.43,146.38,5.4651]
[1723510095388,6.4006,146.43,146.37,13.6631]
[1723510095619,6.4006,146.43,146.4,5.4643]
[1723510095911,6.4006,146.43,146.37,13.6631]
[1723510096093,6.4006,146.43,146.38,1.49140875]
[1723510096706,6.4006,146.43,146.38,0.12549]
[1723510096910,11.864,146.43,146.38,5.4651]
[1723510097719,5.4638,146.42,146.38,5.4651]
[1723510097891,5.4638,146.42,146.37,13.6631]
[1723510097892,6.4006,146.43,146.34,13.6662]
[1723510098097,84.27,146.42,146.34,13.6662]
[1723510098298,5.4649,146.39,146.34,19.1328]
[1723510098598,5.4641,146.41,146.36,19.1302]
[1723510098804,44.7339,146.42,146.37,5.4652]
[1723510099313,5.4642,146.41,146.36,19.1302]
[1723510099515,5.4649,146.39,146.34,5.4666]
[1723510099726,0.07335914,146.38,146.34,5.4666]
[1723510100231,0.07335914,146.38,146.35,5.4663]
[1723510100428,0.07335914,146.38,146.36,1.3662857]
[1723510100793,0.07335914,146.38,146.36,6.8320857]
[1723510101004,0.07335914,146.38,146.35,13.6653]
[1723510101397,0.07335914,146.38,146.33,5.467]
[1723510102108,0.07335914,146.38,146.34,13.6663]
[1723510102306,0.07335914,146.38,146.35,1.3663709]
[1723510102523,0.07335914,146.38,146.28,34.8136778]
[1723510102692,39.27,146.36,146.28,0.8366778]
[1723510102893,5.4671,146.33,146.28,19.9774778]
[1723510103093,39.27,146.36,146.28,14.5085778]
[1723510103094,5.4667,146.34,146.28,14.5085778]
[1723510103322,44.736,146.36,146.31,5.4675]
[1723510103501,5.466,146.36,146.32,5.4674]
[1723510104124,5.466,146.36,146.31,5.4677]
[1723510104317,5.4664,146.35,146.31,5.4677]
[1723510104639,5.4664,146.35,146.3,19.1381]
[1723510105616,5.466,146.36,146.31,6.8344305]
[1723510105822,27.1618,146.37,146.3,13.67]
[1723510106018,27.1618,146.37,146.31,0.12549]
[1723510106205,27.1618,146.37,146.31,1.49205797]
[1723510106723,0.07335914,146.38,146.32,13.6679]
[1723510107029,0.07335914,146.38,146.34,0.12549]
[1723510107210,0.07335914,146.38,146.37,5.59109]
[1723510107414,0.07335914,146.38,146.37,50.96756]
[1723510107607,0.07335914,146.38,146.37,5.96756]
[1723510107832,0.07335914,146.38,146.37,5.84207]
[1723510108042,0.07335914,146.38,146.37,91.60333337]
[1723510108330,0.06986113,146.39,146.38,5.59069]
[1723510108494,0.06986113,146.39,146.38,70.96716]
[1723510108695,0.06986113,146.39,146.38,72.33264388]
[1723510108897,0.06818028,146.41,146.4,0.12549]
[1723510109124,0.06818028,146.41,146.4,111.60155614]
[1723510110200,0.06982883,146.48,146.42,13.6593]
[1723510110521,0.06982883,146.48,146.42,118.43126]
[1723510110721,0.06982883,146.48,146.43,25.96526]
[1723510110898,0.06982883,146.48,146.43,70.96526]
[1723510111454,0.06982883,146.48,146.44,32.90329]
[1723510111633,0.06982883,146.48,146.44,92.54976]
[1723510111802,0.06982883,146.48,146.44,50.96486]
[1723510112004,0.06982883,146.48,146.44,5.4629]
[1723510113430,0.06982883,146.48,146.42,13.6593]
[1723510113803,5.52842052,146.47,146.42,19.1227]
[1723510114426,27.09130922,146.46,146.42,13.6593]
[1723510114739,21.62910922,146.46,146.44,5.4629]
[1723510116843,21.62910922,146.46,146.42,13.6593]
[1723510117022,21.62910922,146.46,146.42,19.1227]
[1723510117219,21.62910922,146.46,146.42,13.6593]
[1723510117422,21.62910922,146.46,146.44,5.4629]
[1723510117637,21.62910922,146.46,146.43,5.4633]
[1723510118123,21.62910922,146.46,146.44,5.4629]
[1723510118441,21.62910922,146.46,146.43,5.4632]
[1723510119440,21.62910922,146.46,146.44,5.4629]
[1723510119613,0.14030309,146.45,146.44,5.4629]
[1723510120255,0.14030309,146.45,146.43,5.4632]
[1723510120417,0.14030309,146.45,146.42,13.6593]
[1723510120749,0.14030309,146.45,146.39,13.6616]
[1723510120946,0.06735874,146.45,146.4,0.12549]
[1723510121243,0.06735874,146.45,146.39,13.6616]
[1723510121462,0.06735874,146.45,146.36,13.6644]
[1723510121463,39.27,146.44,146.36,13.6644]
[1723510121620,44.733,146.44,146.39,5.4648]
[1723510122219,44.733,146.44,146.39,6.83086151]
[1723510122637,39.27,146.44,146.38,13.6626]
[1723510122863,5.4641,146.41,146.37,5.4655]
[1723510123460,5.4638,146.42,146.37,5.4655]
[1723510123773,5.4641,146.41,146.37,5.4655]
[1723510124144,5.4646,146.4,146.36,5.4658]
[1723510124360,39.27,146.42,146.35,13.6656]
[1723510124543,50.4636,146.43,146.38,5.4652]
[1723510124946,5.4637,146.42,146.37,6.8316471]
[1723510125348,5.4637,146.42,146.38,5.4651]
[1723510125875,50.4634,146.43,146.38,5.4651]
[1723510126077,44.7329,146.44,146.39,5.4645]
[1723510127580,39.27,146.42,146.34,13.6663]
[1723510127757,5.4651,146.39,146.34,13.6663]
[1723510127940,5.4651,146.39,146.34,19.1329]
[1723510128141,45.0,146.41,146.35,1.36636101]
[1723510128341,5.4634,146.43,146.38,5.4649]
[1723510128954,0.19284874,146.45,146.4,5.4642]
[1723510128955,5.53025874,146.45,146.4,5.4642]
[1723510129273,0.06735874,146.45,146.41,5.4639]
[1723510129472,0.06735874,146.45,146.39,0.12549]
[1723510129653,0.06735874,146.45,146.44,5.4629]
[1723510129856,0.06735874,146.45,146.42,19.1223]
[1723510130072,5.52995874,146.45,146.41,5.4639]
[1723510130247,5.52995874,146.45,146.39,13.6617]
[1723510130248,5.463,146.44,146.39,19.1264]
[1723510130854,5.463,146.44,146.4,5.4644]
[1723510131773,5.463,146.44,146.39,19.1264]
[1723510132073,21.8853,146.43,146.39,13.6617]
[1723510132374,5.4637,146.42,146.39,13.6617]
[1723510132573,21.8852,146.43,146.39,19.1264]
[1723510132871,16.4218,146.43,146.39,13.6617]
[1723510133168,16.4218,146.43,146.4,5.4644]
[1723510133470,6.2343,146.42,146.37,5.4655]
[1723510133678,6.2343,146.42,146.39,5.4647]
[1723510133854,6.2343,146.42,146.38,1.36603953]
[1723510133855,11.6983,146.42,146.38,13.6627]
[1723510134054,5.4642,146.41,146.37,5.4655]
[1723510134280,6.2343,146.42,146.35,13.6652]
[1723510134483,5.4645,146.4,146.35,19.1314]
[1723510134849,50.4642,146.41,146.36,5.4658]
[1723510135051,45.0,146.41,146.37,5.4654]
[1723510135273,11.698,146.42,146.38,5.465]
[1723510135576,6.2343,146.42,146.37,13.6634]
[1723510135771,5.4645,146.4,146.35,5.4659]
[1723510136574,5.4645,146.4,146.36,5.4659]
[1723510136745,50.4641,146.41,146.34,13.6663]
[1723510136945,5.4645,146.4,146.35,5.4662]
[1723510137145,45.0,146.41,146.34,13.6663]
[1723510137146,85.97808663,146.41,146.34,13.6663]
[1723510137373,5.4654,146.38,146.34,13.6663]
[1723510137579,5.4656,146.37,146.34,13.6663]
[1723510137979,39.27,146.39,146.31,19.1367]
[1723510138275,20.0,146.4,146.31,19.1367]
[1723510138276,44.7357,146.37,146.32,5.4674]
[1723510139061,44.7357,146.37,146.33,5.467]
[1723510139062,39.27,146.37,146.33,5.467]
[1723510139262,39.27,146.37,146.33,13.6674]
[1723510139449,15.3112,146.38,146.34,1.3666213]
[1723510139652,0.07473769,146.35,146.34,5.4667]
[1723510139961,0.07473769,146.35,146.33,19.1343]
[1723510140161,0.07473769,146.35,146.34,5.4667]
[1723510140552,0.07473769,146.35,146.32,5.4673]
[1723510140860,0.07473769,146.35,146.3,13.6699]
[1723510141260,5.4668,146.34,146.3,19.1378]
[1723510141469,5.4668,146.34,146.3,13.6699]
[1723510141673,6.68213769,146.35,146.32,13.6683]
[1723510141864,0.07473769,146.35,146.32,13.6683]
[1723510142177,5.54103769,146.35,146.32,13.6683]
[1723510142478,0.07473769,146.35,146.32,13.6683]
[1723510142679,5.4669,146.34,146.29,19.1393]
[1723510142864,5.4671,146.33,146.28,6.3052778]
[1723510143279,50.4675,146.32,146.28,0.8366778]
[1723510143590,0.07473769,146.35,146.28,0.8366778]
[1723510143783,0.07473769,146.35,146.29,28.70970907]
[1723510143967,0.07473769,146.35,146.3,1.3667274]
[1723510144176,0.07473769,146.35,146.32,5.4673]
[1723510145190,0.07473769,146.35,146.31,13.6687]
[1723510145401,0.07473769,146.35,146.3,0.12549]
[1723510145402,0.07473769,146.35,146.34,5.4667]
[1723510145685,0.07473769,146.35,146.31,5.4678]
[1723510145980,5.54103769,146.35,146.3,19.1381]
[1723510146186,0.07473769,146.35,146.31,6.83453114]
[1723510146393,0.07473769,146.35,146.33,13.6676]
[1723510146889,39.34473769,146.35,146.25,34.49447464]
[1723510147487,5.4674,146.32,146.28,6.3054778]
[1723510147668,5.4671,146.33,146.29,5.4685]
[1723510148260,0.07473769,146.35,146.32,5.4671]
[1723510148769,0.07473769,146.35,146.32,5.4674]
[1723510148967,0.07473769,146.35,146.34,5.4667]
[1723510149477,0.07473769,146.35,146.34,6.83315065]
[1723510150069,0.07473769,146.35,146.34,6.95864065]
[1723510150269,0.07473769,146.35,146.34,52.20962065]
[1723510150581,0.07473769,146.35,146.34,7.20962065]
[1723510150791,0.07473769,146.35,146.34,52.33511065]
[1723510150960,0.07473769,146.35,146.34,7.20962065]
[1723510151360,0.07473769,146.35,146.34,52.33511065]
[1723510151678,9.24e-06,146.4,146.39,0.12549]
[1723510151881,4.66e-05,146.43,146.42,19.123]
[1723510152090,0.0712656,146.44,146.43,5.58879]
[1723510152262,0.0712656,146.44,146.43,70.71428]
[1723510152584,0.0712656,146.44,146.43,81.78379495]
[1723510153021,39.27,146.6,146.45,19.24459]
[1723510153174,39.27,146.6,146.45,141.15435897]
[1723510153377,1.112e-05,146.46,146.45,141.15435897]
[1723510153705,3.203e-05,146.47,146.46,5.58769]
[1723510153914,3.203e-05,146.47,146.46,100.92429168]
[1723510154196,3.203e-05,146.47,146.46,91.95083771]
[1723510154592,3.203e-05,146.47,146.46,72.32851542]
[1723510154781,3.203e-05,146.47,146.46,98.27536]
[1723510154973,3.203e-05,146.47,146.46,99.64008396]
[1723510157392,33.6399,146.63,146.46,99.64008396]
[1723510157393,2.64380343,146.65,146.53,0.12549]
[1723510157600,62.116,146.7,146.62,13.6403]
[1723510157909,69.24735321,146.7,146.67,5.454]
[1723510158076,22.846,146.7,146.67,5.454]
[1723510158410,22.846,146.7,146.68,5.454]
[1723510158697,22.846,146.7,146.65,19.0925]
[1723510159029,22.846,146.7,146.66,5.4546]
[1723510159309,22.846,146.7,146.67,5.4544]
[1723510159712,0.06408853,146.68,146.67,5.4544]
[1723510160626,0.06408853,146.68,146.65,13.6377]
[1723510160807,0.06408853,146.68,146.67,5.4544]
[1723510161009,0.06408853,146.68,146.67,5.70538]
[1723510161219,0.06408853,146.68,146.67,5.83087]
[1723510161799,0.06408853,146.68,146.67,7.19399001]
[1723510162002,0.06408853,146.68,146.67,52.31948001]
[1723510162600,0.06408853,146.68,146.67,52.31931919]
[1723510163743,0.06178637,146.69,146.68,46.48479]
[1723510164063,0.06748382,146.7,146.69,5.4536]
[1723510164239,0.06748382,146.7,146.69,25.95556]
[1723510164445,0.06748382,146.7,146.69,70.95556]
[1723510164726,0.06637353,146.81,146.77,5.4507]
[1723510164931,0.06637353,146.81,146.77,39.57936]
[1723510165427,0.06637353,146.81,146.77,84.57936]
[1723510165610,0.06637353,146.81,146.77,85.94109831]
[1723510165813,0.06637353,146.81,146.79,5.57539]
[1723510166138,0.06637353,146.81,146.8,19.19889]
[1723510166299,0.06637353,146.81,146.8,64.32438]
[1723510166611,0.06637353,146.81,146.8,84.57536]
[1723510166810,0.06637353,146.81,146.8,20.07660113]
[1723510167006,0.06637353,146.81,146.8,65.07660113]
[1723510167203,0.06637353,146.81,146.8,84.57536]
[1723510167833,0.06637353,146.81,146.8,85.07640865]
[1723510168035,0.06637353,146.81,146.8,84.57536]
[1723510168730,0.06637353,146.81,146.8,85.07609766]
[1723510168934,0.06637353,146.81,146.8,131.87609766]
[1723510169749,0.06637353,146.81,146.8,131.37536]
[1723510170447,0.06637353,146.81,146.8,131.87609642]
[1723510170836,1e-08,146.82,146.81,5.57469]
[1723510171025,1e-08,146.82,146.81,70.95116]
[1723510171423,1e-08,146.82,146.81,5.4492]
[1723510172917,1e-08,146.82,146.81,5.57469]
[1723510173142,1e-08,146.82,146.81,5.95063794]
[1723510173523,1e-08,146.82,146.81,5.4492]
[1723510173722,1e-08,146.82,146.81,5.70018]
[1723510174315,1e-08,146.82,146.81,6.4524076]
[1723510174869,1e-08,146.82,146.81,5.82567]
[1723510175150,1e-08,146.82,146.69,46.8]
[1723510175333,16.588,146.81,146.67,5.80010746]
[1723510175653,46.8,146.79,146.66,2.730814]
[1723510175824,46.8,146.79,146.69,27.2673]
[1723510176027,46.8,146.79,146.73,13.6301]
[1723510176329,52.2502,146.79,146.73,13.6301]
[1723510176533,5.4511,146.76,146.71,5.4526]
[1723510176953,5.4507,146.77,146.72,5.4525]
[1723510177124,46.8,146.79,146.73,0.50473188]
[1723510177330,5.4507,146.77,146.72,19.0837]
[1723510177538,45.0,146.78,146.73,5.452]
[1723510177539,50.4503,146.78,146.73,5.452]
[1723510177740,45.0,146.78,146.74,5.4516]
[1723510177946,46.8,146.79,146.72,13.6312]
[1723510178531,16.588,146.81,146.74,13.6289]
[1723510179354,16.588,146.81,146.76,13.627]
[1723510179656,0.06770121,146.77,146.76,13.627]
[1723510180221,0.06770121,146.77,146.76,19.078]
[1723510180432,0.06770121,146.77,146.76,19.20349]
[1723510180638,0.06770121,146.77,146.76,19.45447]
[1723510181729,0.06770121,146.77,146.76,19.20349]
[1723510181946,0.06770121,146.77,146.76,19.078]
[1723510182128,0.06770121,146.77,146.73,19.0819]
[1723510182460,0.06770121,146.77,146.76,13.6276]
[1723510182828,0.06770121,146.77,146.75,5.4514]
[1723510183156,0.06770121,146.77,146.76,5.451]
[1723510183321,0.06770121,146.77,146.75,13.6278]
[1723510183853,0.06770121,146.77,146.76,0.5039091]
[1723510184242,0.06770121,146.77,146.76,5.9549091]
[1723510184429,0.06770121,146.77,146.75,13.6278]
[1723510184829,0.06770121,146.77,146.75,19.0791]
[1723510185127,0.06770121,146.77,146.76,6.20574441]
[1723510185354,0.06770121,146.77,146.76,6.45672441]
[1723510185543,0.06770121,146.77,146.76,51.45672441]
[1723510185940,0.06770121,146.77,146.76,50.95296]
[1723510186124,0.06768356,146.78,146.76,65.50196]
[1723510186464,0.06768356,146.78,146.77,144.88067]
[1723510186642,0.06768356,146.78,146.77,145.00616]
[1723510188336,0.0631985,146.79,146.78,19.20159]
[1723510188655,0.0631985,146.79,146.78,84.57806]
[1723510191667,0.0631985,146.79,146.78,85.07939307]
[1723510193661,6.954e-05,146.81,146.8,5.57499]
[1723510193833,6.954e-05,146.81,146.8,70.95146]
[1723510194676,6.954e-05,146.81,146.8,50.95146]
[1723510196058,6.954e-05,146.81,146.8,51.45246352]
[1723510196477,6.954e-05,146.81,146.8,50.95146]
[1723510197364,6.954e-05,146.81,146.8,51.45278669]
[1723510197870,6.954e-05,146.81,146.8,50.95146]
[1723510198642,6.954e-05,146.81,146.79,5.4499]
[1723510199082,15.03166954,146.81,146.75,13.6281]
[1723510199238,5.45,146.79,146.75,13.6281]
[1723510199443,5.4503,146.78,146.75,13.6281]
[1723510199643,0.06357492,146.76,146.75,13.6281]
[1723510200144,0.06357492,146.76,146.75,19.0795]
[1723510200346,0.06357492,146.76,146.72,13.6309]
[1723510200569,6.1708,146.75,146.67,66.3416]
[1723510200785,0.07227533,146.77,146.75,27.2572]
[1723510200955,0.06174707,146.81,146.76,39.57215032]
[1723510201145,0.06174707,146.81,146.79,39.07]
[1723510201341,0.06174707,146.81,146.79,44.5199]
[1723510201773,0.06174707,146.81,146.8,19.19889]
[1723510201976,0.06174707,146.81,146.8,111.87655391]
[1723510202470,0.06174707,146.81,146.8,131.37536]
[1723510202780,0.06174707,146.81,146.8,64.57536]
[1723510202941,0.06174707,146.81,146.8,65.07629605]
[1723510203143,0.06174707,146.81,146.8,85.07629605]
[1723510204346,0.06159453,146.83,146.81,0.12549]
[1723510204551,0.07206777,146.85,146.83,40.98889]
[1723510204872,0.07019071,146.91,146.85,0.12549]
[1723510205070,0.07019071,146.91,146.84,133.22592001]
[1723510205071,0.07019071,146.91,146.9,5.57129]
[1723510205258,0.07019071,146.91,146.9,117.74776]
[1723510205778,0.06332767,146.93,146.91,0.12549]
[1723510205956,0.06332767,146.93,146.91,50.94746]
[1723510206161,0.06332767,146.93,146.91,71.44470642]
[1723510206452,0.06332767,146.93,146.91,76.74756746]
[1723510206788,9.23101004,147.08,146.93,5.4447]
[1723510206948,9.23101004,147.08,146.93,72.74666]
[1723510206949,15.5516,147.07,146.93,72.74666]
[1723510207147,15.5516,147.07,146.93,80.27335828]
[1723510207349,5.4403,147.06,146.93,70.94666]
[1723510207567,15.5516,147.07,146.93,70.94666]
[1723510207782,15.5516,147.07,146.94,52.36979]
[1723510207959,15.5516,147.07,146.94,123.54636746]
[1723510208163,15.5516,147.07,146.94,132.87306574]
[1723510208393,15.5516,147.07,147.02,5.56689]
[1723510208683,15.5516,147.07,147.02,50.94336]
[1723510208868,2.66441004,147.08,147.02,51.43881339]
[1723510209063,2.66441004,147.08,147.02,50.94336]
[1723510209266,0.8366778,147.09,147.08,5.56469]
[1723510209573,0.8366778,147.09,147.08,6.43501952]
[1723510209777,0.8366778,147.09,147.08,51.43501952]
[1723510210091,21.2662,147.19,147.08,51.43501952]
[1723510210092,21.2662,147.19,147.18,5.4355]
[1723510210385,21.2662,147.19,147.16,19.0258]
[1723510210684,14.0,147.2,147.18,5.4355]
[1723510210994,14.0,147.2,147.19,5.56059]
[1723510211282,14.0,147.2,147.19,50.93706]
[1723510212269,14.0,147.2,147.19,5.93706]
[1723510212470,14.0,147.2,147.19,5.56059]
[1723510213207,19.4348,147.2,147.12,40.7809]
[1723510213360,14.0,147.2,147.13,0.49235047]
[1723510213564,14.0,147.2,147.12,27.1873]
[1723510213565,14.0,147.2,147.16,5.436]
[1723510213796,14.0,147.2,147.17,5.4357]
[1723510213979,5.4355,147.18,147.12,5.4375]
[1723510214181,14.0,147.2,147.14,5.4369]
[1723510214389,14.0,147.2,147.15,5.4365]
[1723510214390,19.4347,147.2,147.15,5.4365]
[1723510214599,14.0,147.2,147.13,13.5925]
[1723510214768,14.0,147.2,147.14,5.4367]
[1723510214769,19.4348,147.2,147.14,5.4367]
[1723510214970,5.4355,147.18,147.13,19.0298]
[1723510215367,19.4351,147.2,147.14,5.92986855]
[1723510215588,19.4351,147.2,147.19,5.4351]
[1723510215589,14.0,147.2,147.19,5.4351]
[1723510216283,14.0,147.2,147.17,19.0247]
[1723510216489,14.0,147.2,147.14,19.029]
[1723510216692,19.4348,147.2,147.15,5.68758]
[1723510216900,5.4352,147.19,147.15,0.25098]
[1723510217195,14.0,147.2,147.13,5.4372]
[1723510217395,14.0,147.2,147.16,13.5906]
[1723510217699,15.186,147.19,147.1,13.5961]
[1723510217873,15.186,147.19,147.13,5.4373]
[1723510218076,15.186,147.19,147.1,13.5961]
[1723510218395,52.90466339,147.18,147.1,13.5961]
[1723510218693,1.69918006,147.17,147.1,13.5961]
[1723510218993,0.12549,147.17,147.08,5.4391]
[1723510219196,111.59469,147.18,147.09,5.4387]
[1723510219401,111.59469,147.18,147.07,13.5988]
[1723510219402,20.25098,147.17,147.07,13.5988]
[1723510219700,0.12549,147.14,147.04,13.6017]
[1723510219877,16.6092,147.13,147.07,13.5988]
[1723510220071,16.6092,147.13,147.09,5.4388]
[1723510220271,16.6092,147.13,147.07,13.5988]
[1723510220496,16.6092,147.13,147.09,5.4387]
[1723510220801,16.6092,147.13,147.1,14.09029846]
[1723510220981,16.6092,147.13,147.11,0.49390465]
[1723510221367,16.6092,147.13,147.12,5.56319]
[1723510221570,16.6092,147.13,147.12,5.68868]
[1723510221801,16.6092,147.13,147.11,5.438]
[1723510222011,16.6092,147.13,147.11,5.93176088]
[1723510222295,16.6092,147.13,147.12,5.56319]
[1723510222505,16.6092,147.13,147.12,5.68868]
[1723510222681,6.0802,147.18,147.13,13.5934]
[1723510223002,6.0802,147.18,147.14,0.12549]
[1723510223207,6.0802,147.18,147.16,0.12549]
[1723510223371,6.0802,147.18,147.17,5.4358]
[1723510223701,6.0802,147.18,147.17,5.56129]
[1723510224017,6.0802,147.18,147.17,0.25098]
[1723510224304,6.0802,147.18,147.12,13.5941]
[1723510224610,5.4362,147.17,147.12,19.0317]
[1723510224767,5.4362,147.17,147.13,0.12549]
[1723510224967,5.4362,147.16,147.12,13.5941]
[1723510225198,5.4366,147.15,147.1,5.4384]
[1723510225510,5.437,147.14,147.09,19.0356]
[1723510225677,6.0802,147.18,147.09,13.5969]
[1723510225996,46.8,147.13,146.97,46.8]
[1723510226203,46.8,147.13,146.97,47.29527949]
[1723510226372,46.8,147.13,147.04,5.4406]
[1723510226373,5.4391,147.09,147.04,5.4406]
[1723510226574,5.4392,147.08,147.03,19.0433]
[1723510226795,22.5427,147.07,147.03,13.6024]
[1723510227180,22.5427,147.07,147.05,5.4403]
[1723510227577,22.5427,147.07,147.03,19.0431]
[1723510227823,22.5427,147.07,146.99,5.4425]
[1723510227990,22.5427,147.07,146.94,27.2213]
[1723510228316,5.4406,147.05,147.0,5.4421]
[1723510228897,5.4407,147.04,146.99,19.0482]
[1723510229199,22.5427,147.07,147.02,5.4412]
[1723510229406,27.9824,147.07,147.02,5.4412]
[1723510229613,22.5427,147.07,147.01,13.6039]
[1723510229777,22.5427,147.07,146.98,13.607]
[1723510230102,46.8,147.05,146.98,13.607]
[1723510230301,5.4417,147.02,146.98,13.607]
[1723510230505,1.70079268,147.01,146.95,13.61]
[1723510230689,1.70075393,147.04,146.95,13.61]
[1723510230887,46.8,147.05,146.97,13.6074]
[1723510231404,5.4418,147.01,146.97,13.6074]
[1723510231719,5.4408,147.04,146.99,5.4422]
[1723510231909,5.4408,147.04,147.0,5.4421]
[1723510232204,22.5427,147.07,147.01,0.49700938]
[1723510232384,22.5427,147.07,147.03,5.4407]
[1723510232588,22.5427,147.07,147.01,13.6038]
[1723510232784,5.4403,147.06,147.01,19.0455]
[1723510233018,27.9823,147.07,147.02,5.4413]
[1723510233185,22.5427,147.07,147.03,5.441]
[1723510233500,22.5427,147.07,147.01,13.6038]
[1723510233687,5.4402,147.06,147.01,19.0455]